fUST/lending_fUST_20250606
["ID","MTS","AMOUNT","RATE_DAILY","PERIOD"]
[364708555,1749214243448,-700.1,0.00019726,2]
[364708556,1749214243457,-440.0,0.00019726,2]
[364708557,1749214243466,-2910.28,0.00019726,2]
[364708558,1749214243475,-2253.61,0.00019726,2]
[364708559,1749214243484,-550.0,0.00019726,2]
[364708560,1749214243494,-440.0,0.00019726,2]
[364708561,1749214243503,-420.0,0.00019726,2]
[364708562,1749214243512,-440.0,0.00019726,2]
[364708563,1749214243521,-440.0,0.00019726,2]
[364708564,1749214243530,-440.0,0.00019726,2]
[364708565,1749214243540,-440.0,0.00019726,2]
[364708566,1749214243549,-440.0,0.00019726,2]
[364708567,1749214243558,-440.0,0.00019726,2]
[364708568,1749214243569,-410.0,0.00019726,2]
[364708569,1749214243578,-390.0,0.00019726,2]
[364708570,1749214243587,-440.0,0.00019726,2]
[364708571,1749214243597,-561.53,0.00019726,2]
[364708572,1749214243607,-440.0,0.00019726,2]
[364708573,1749214243616,-988.31,0.00019726,2]
[364708574,1749214243626,-440.0,0.00019726,2]
[364708575,1749214243636,-440.0,0.00019726,2]
[364708576,1749214243646,-360.0,0.00019726,2]
[364708577,1749214243655,-1039.65,0.00019726,2]
[364708578,1749214243665,-440.0,0.00019726,2]
[364708579,1749214243675,-440.0,0.00019726,2]
[364708580,1749214243686,-440.0,0.00019726,2]
[364708581,1749214243695,-440.0,0.00019726,2]
[364708582,1749214243705,-440.0,0.00019726,2]
[364708583,1749214243716,-440.0,0.00019726,2]
[364708584,1749214243726,-440.0,0.00019726,2]
[364708585,1749214243735,-420.0,0.00019726,2]
[364708586,1749214243745,-440.0,0.00019726,2]
[364708587,1749214243754,-440.0,0.00019726,2]
[364708588,1749214243764,-5859.32,0.00019726,2]
[364708589,1749214243774,-657.96,0.00019726,2]
[364708590,1749214243783,-1404.95,0.00019726,2]
[364708591,1749214243793,-440.0,0.00019726,2]
[364708592,1749214243803,-440.0,0.00019726,2]
[364708593,1749214243815,-440.0,0.00019726,2]
[364708594,1749214243825,-440.0,0.00019726,2]
[364708595,1749214243835,-440.0,0.00019726,2]
[364708596,1749214243846,-863.5,0.00019726,2]
[364708597,1749214243856,-440.0,0.00019726,2]
[364708598,1749214243866,-440.0,0.00019726,2]
[364708599,1749214243876,-440.0,0.00019726,2]
[364708600,1749214243885,-440.0,0.00019726,2]
[364708601,1749214243895,-440.0,0.00019726,2]
[364708602,1749214243905,-440.0,0.00019726,2]
[364708603,1749214243915,-440.0,0.00019726,2]
[364708604,1749214243925,-911.46,0.00019726,2]
[364708605,1749214243935,-1062.11,0.00019726,2]
[364708606,1749214243944,-440.0,0.00019726,2]
[364708607,1749214243955,-410.0,0.00019726,2]
[364708609,1749214243965,-966.81,0.00019726,2]
[364708611,1749214243975,-440.0,0.00019726,2]
[364708613,1749214243985,-425.2196465,0.00019726,2]
[364708615,1749214243997,-440.0,0.00019726,2]
[364708617,1749214244007,-440.0,0.00019726,2]
[364708619,1749214244016,-440.0,0.00019726,2]
[364708621,1749214244026,-468.16965099,0.00019726,2]
[364708623,1749214244036,-410.0,0.00019726,2]
[364708625,1749214244045,-440.0,0.00019726,2]
[364708627,1749214244055,-420.0,0.00019726,2]
[364708629,1749214244068,-440.0,0.00019726,2]
[364708631,1749214244079,-440.0,0.00019726,2]
[364708633,1749214244088,-4387.44,0.00019726,2]
[364708635,1749214244098,-440.0,0.00019726,2]
[364708637,1749214244108,-440.0,0.00019726,2]
[364708639,1749214244117,-382.68366557,0.00019726,2]
[364708641,1749214244127,-440.0,0.00019726,2]
[364708643,1749214244137,-440.0,0.00019726,2]
[364708645,1749214244147,-440.0,0.00019726,2]
[364708647,1749214244158,-192.02972206,0.00019726,2]
[364708649,1749214244168,-420.0,0.00019726,2]
[364708652,1749214244178,-440.0,0.00019726,2]
[364708653,1749214244187,-450.0,0.00019726,2]
[364708655,1749214244196,-440.0,0.00019726,2]
[364708658,1749214244206,-440.0,0.00019726,2]
[364708660,1749214244216,-440.0,0.00019726,2]
[364708662,1749214244225,-1842.31,0.00019726,2]
[364708663,1749214244234,-311.08113797,0.00019726,2]
[364708665,1749214244244,-420.0,0.00019822,2]
[364708667,1749214244255,-350.0,0.0001998,2]
[364708669,1749214244266,-500.0,0.00019999,2]
[364708671,1749214244276,-201.5440129,0.00019999,2]
[364708673,1749214244285,-571.21816113,0.0002,2]
[364708675,1749214244295,-440.0,0.0002,2]
[364708677,1749214244304,-440.0,0.0002,2]
[364708679,1749214244315,-440.0,0.0002,2]
[364708681,1749214244325,-440.0,0.0002,2]
[364708683,1749214244334,-440.0,0.0002,2]
[364708686,1749214244344,-508.47269799,0.0002,2]
[364708688,1749214244354,-440.0,0.0002,2]
[364708690,1749214244363,-42250.0,0.0002,2]
[364708708,1749214244528,-440.0,0.0002,2]
[364708709,1749214244571,-440.0,0.0002,2]
[364708710,1749214244582,-400.0,0.0002,2]
[364708711,1749214244593,-440.0,0.0002,2]
[364708712,1749214244604,-443.77,0.0002,2]
[364708713,1749214244614,-440.0,0.0002,2]
[364708714,1749214244623,-440.0,0.0002,2]
[364708715,1749214244634,-440.0,0.0002,2]
[364708716,1749214244643,-400.0,0.0002,2]
[364708717,1749214244654,-410.0,0.0002,2]
[364708718,1749214244663,-410.0,0.0002,2]
[364708719,1749214244673,-316.44811244,0.0002,2]
[364708720,1749214244683,-440.0,0.0002,2]
[364708721,1749214244693,-440.0,0.0002,2]
[364708722,1749214244703,-440.0,0.0002,2]
[364708723,1749214244713,-440.0,0.0002,2]
[364708724,1749214244723,-440.0,0.0002,2]
[364708725,1749214244733,-440.0,0.0002,2]
[364708726,1749214244743,-440.0,0.0002,2]
[364708727,1749214244753,-420.0,0.0002,2]
[364708728,1749214244762,-410.0,0.0002,2]
[364708729,1749214244771,-440.0,0.0002,2]
[364708730,1749214244781,-400.0,0.0002,2]
[364708731,1749214244790,-237.773431,0.0002,2]
[364708732,1749214244799,-410.0,0.0002,2]
[364708733,1749214244808,-440.0,0.0002,2]
[364708734,1749214244819,-440.0,0.0002,2]
[364708735,1749214244829,-457.32,0.0002,2]
[364708736,1749214244838,-440.0,0.0002,2]
[364708737,1749214244848,-440.0,0.0002,2]
[364708738,1749214244858,-400.0,0.0002,2]
[364708739,1749214244867,-440.0,0.0002,2]
[364708740,1749214244877,-440.0,0.0002,2]
[364708741,1749214244887,-440.0,0.0002,2]
[364708742,1749214244897,-440.0,0.0002,2]
[364708743,1749214244906,-440.0,0.0002,2]
[364708744,1749214244916,-440.0,0.0002,2]
[364708745,1749214244925,-420.0,0.0002,2]
[364708746,1749214244935,-440.0,0.0002,2]
[364708747,1749214244944,-440.0,0.0002,2]
[364708748,1749214244954,-440.0,0.0002,2]
[364708749,1749214244964,-440.0,0.0002,2]
[364708750,1749214244973,-1619.82,0.0002,2]
[364708751,1749214244986,-1008.18,0.0002,2]
[364708752,1749214244996,-446.5160786,0.0002,2]
[364708753,1749214245006,-400.0,0.0002,2]
[364708754,1749214245017,-440.0,0.0002,2]
[364708755,1749214245027,-440.0,0.0002,2]
[364708756,1749214245037,-440.0,0.0002,2]
[364708757,1749214245047,-440.0,0.0002,2]
[364708758,1749214245057,-2671.63,0.0002,2]
[364708759,1749214245069,-1751.18,0.0002,2]
[364708760,1749214245079,-440.0,0.0002,2]
[364708761,1749214245088,-583.76,0.0002,2]
[364708762,1749214245098,-440.0,0.0002,2]
[364708763,1749214245108,-440.0,0.0002,2]
[364708764,1749214245118,-360.0,0.0002,2]
[364708765,1749214245128,-483.93722922,0.0002,2]
[364708766,1749214245138,-440.0,0.0002,2]
[364708767,1749214245149,-440.0,0.0002,2]
[364708768,1749214245159,-423.5571818,0.0002,2]
[364708769,1749214245169,-605.44,0.0002,2]
[364708770,1749214245179,-700.1,0.0002,2]
[364708771,1749214245189,-440.0,0.0002,2]
[364708772,1749214245198,-2910.28,0.0002,2]
[364708773,1749214245208,-2253.61,0.0002,2]
[364708774,1749214245218,-440.0,0.0002,2]
[364708775,1749214245229,-440.0,0.0002,2]
[364708776,1749214245240,-440.0,0.0002,2]
[364708777,1749214245250,-440.0,0.0002,2]
[364708778,1749214245260,-440.0,0.0002,2]
[364708779,1749214245270,-440.0,0.0002,2]
[364708780,1749214245279,-440.0,0.0002,2]
[364708781,1749214245289,-440.0,0.0002,2]
[364708782,1749214245299,-561.53,0.0002,2]
[364708783,1749214245308,-440.0,0.0002,2]
[364708784,1749214245320,-988.31,0.0002,2]
[364708785,1749214245331,-400.0,0.0002,2]
[364708786,1749214245340,-436.93770404,0.0002,2]
[364708787,1749214245350,-1039.65,0.0002,2]
[364708788,1749214245360,-440.0,0.0002,2]
[364708789,1749214245370,-440.0,0.0002,2]
[364708790,1749214245380,-440.0,0.0002,2]
[364708791,1749214245389,-440.0,0.0002,2]
[364708792,1749214245400,-440.0,0.0002,2]
[364708793,1749214245409,-420.0,0.0002,2]
[364708794,1749214245419,-440.0,0.0002,2]
[364708795,1749214245429,-440.0,0.0002,2]
[364708796,1749214245438,-440.0,0.0002,2]
[364708797,1749214245448,-5859.32,0.0002,2]
[364708798,1749214245458,-657.96,0.0002,2]
[364708799,1749214245467,-236.75713331,0.0002,2]
[364708800,1749214245477,-440.0,0.0002,2]
[364708802,1749214245487,-440.0,0.0002,2]
[364708803,1749214245496,-400.0,0.0002,2]
[364708804,1749214245506,-440.0,0.0002,2]
[364708805,1749214245516,-863.5,0.0002,2]
[364708806,1749214245525,-440.0,0.0002,2]
[364708807,1749214245535,-440.0,0.0002,2]
[364708809,1749214245544,-440.0,0.0002,2]
[364708811,1749214245554,-440.0,0.0002,2]
[364708812,1749214245563,-440.0,0.0002,2]
[364708813,1749214245573,-374.76786021,0.0002,2]
[364708814,1749214245583,-400.0,0.0002,2]
[364708815,1749214245593,-911.46,0.0002,2]
[364708816,1749214245603,-1062.11,0.0002,2]
[364708817,1749214245613,-440.0,0.0002,2]
[364708818,1749214245622,-966.81,0.0002,2]
[364708819,1749214245632,-440.0,0.0002,2]
[364708820,1749214245642,-412.01997378,0.0002,2]
[364708821,1749214245651,-440.0,0.0002,2]
[364708822,1749214245661,-440.0,0.0002,2]
[364708823,1749214245671,-521.49316756,0.0002,2]
[364708824,1749214245681,-440.0,0.0002,2]
[364708825,1749214245692,-440.0,0.0002,2]
[364708826,1749214245702,-4387.44,0.0002,2]
[364708827,1749214245712,-440.0,0.0002,2]
[364708828,1749214245722,-440.0,0.0002,2]
[364708829,1749214245732,-420.0,0.0002,2]
[364708830,1749214245742,-440.0,0.0002,2]
[364708831,1749214245752,-440.0,0.0002,2]
[364708833,1749214245762,-440.0,0.0002,2]
[364708834,1749214245772,-440.0,0.0002,2]
[364708835,1749214245782,-440.0,0.0002,2]
[364708836,1749214245793,-440.0,0.0002,2]
[364708837,1749214245803,-1842.31,0.0002,2]
[364708838,1749214245813,-189.487,0.00020078,2]
[364708840,1749214245823,-272.003236,0.00020187,2]
[364708842,1749214245833,-1452.25893078,0.00020268,2]
[364708844,1749214245843,-1500.0,0.00020268,2]
[364708845,1749214245852,-503.93294425,0.00020268,2]
[364708846,1749214245863,-500.0,0.00020268,2]
[364708847,1749214245873,-1000.0,0.00020268,2]
[364708848,1749214245882,-440.0,0.00020273,2]
[364708849,1749214245892,-440.0,0.00020273,2]
[364708850,1749214245902,-440.0,0.00020273,2]
[364708851,1749214245912,-440.0,0.00020273,2]
[364708852,1749214245922,-440.0,0.00020273,2]
[364708853,1749214245932,-440.0,0.00020273,2]
[364708854,1749214245942,-440.0,0.00020273,2]
[364708855,1749214245952,-440.0,0.00020273,2]
[364708856,1749214245962,-440.0,0.00020273,2]
[364708857,1749214245972,-443.77,0.00020273,2]
[364708858,1749214245983,-440.0,0.00020273,2]
[364708859,1749214245994,-440.0,0.00020273,2]
[364708860,1749214246004,-440.0,0.00020273,2]
[364708861,1749214246014,-440.0,0.00020273,2]
[364708862,1749214246026,-440.0,0.00020273,2]
[364708863,1749214246036,-440.0,0.00020273,2]
[364708864,1749214246046,-390.0,0.00020273,2]
[364708865,1749214246056,-440.0,0.00020273,2]
[364708866,1749214246069,-440.0,0.00020273,2]
[364708867,1749214246079,-440.0,0.00020273,2]
[364708869,1749214246089,-440.0,0.00020273,2]
[364708870,1749214246098,-440.0,0.00020273,2]
[364708871,1749214246108,-440.0,0.00020273,2]
[364708872,1749214246118,-457.32,0.00020273,2]
[364708873,1749214246127,-440.0,0.00020273,2]
[364708874,1749214246136,-440.0,0.00020273,2]
[364708875,1749214246146,-390.0,0.00020273,2]
[364708876,1749214246156,-440.0,0.00020273,2]
[364708877,1749214246166,-350.0,0.00020273,2]
[364708878,1749214246176,-581.65472452,0.00020273,2]
[364708879,1749214246186,-440.0,0.00020273,2]
[364708880,1749214246195,-410.0,0.00020273,2]
[364708881,1749214246205,-440.0,0.00020273,2]
[364708882,1749214246215,-440.0,0.00020273,2]
[364708883,1749214246225,-440.0,0.00020273,2]
[364708884,1749214246235,-450.0,0.00020273,2]
[364708885,1749214246246,-1619.82,0.00020273,2]
[364708886,1749214246256,-1008.18,0.00020273,2]
[364708887,1749214246266,-400.0,0.00020273,2]
[364708888,1749214246277,-400.0,0.00020273,2]
[364708889,1749214246286,-390.0,0.00020273,2]
[364708890,1749214246296,-440.0,0.00020273,2]
[364708891,1749214246306,-2671.63,0.00020273,2]
[364708892,1749214246318,-1751.18,0.00020273,2]
[364708893,1749214246328,-440.0,0.00020273,2]
[364708894,1749214246338,-583.76,0.00020273,2]
[364708895,1749214246348,-440.0,0.00020273,2]
[364708896,1749214246357,-440.0,0.00020273,2]
[364708897,1749214246367,-440.0,0.00020273,2]
[364708898,1749214246377,-440.0,0.00020273,2]
[364708899,1749214246386,-700.1,0.00020273,2]
[364708900,1749214246396,-605.44,0.00020273,2]
[364708901,1749214246406,-440.0,0.00020273,2]
[364708902,1749214246416,-2910.28,0.00020273,2]
[364708903,1749214246426,-2253.61,0.00020273,2]
[364708904,1749214246436,-440.0,0.00020273,2]
[364708905,1749214246446,-440.0,0.00020273,2]
[364708906,1749214246455,-440.0,0.00020273,2]
[364708907,1749214246465,-440.0,0.00020273,2]
[364708908,1749214246476,-440.0,0.00020273,2]
[364708909,1749214246486,-440.0,0.00020273,2]
[364708910,1749214246496,-440.0,0.00020273,2]
[364708911,1749214246505,-440.0,0.00020273,2]
[364708912,1749214246516,-561.53,0.00020273,2]
[364708913,1749214246525,-440.0,0.00020273,2]
[364708914,1749214246535,-988.31,0.00020273,2]
[364708915,1749214246545,-1039.65,0.00020273,2]
[364708916,1749214246555,-542.58357322,0.00020273,2]
[364708917,1749214246565,-440.0,0.00020273,2]
[364708918,1749214246575,-440.0,0.00020273,2]
[364708919,1749214246585,-440.0,0.00020273,2]
[364708920,1749214246595,-440.0,0.00020273,2]
[364708921,1749214246604,-440.0,0.00020273,2]
[364708922,1749214246614,-440.0,0.00020273,2]
[364708923,1749214246623,-440.0,0.00020273,2]
[364708924,1749214246634,-5859.32,0.00020273,2]
[364708925,1749214246644,-657.96,0.00020273,2]
[364708926,1749214246653,-440.0,0.00020273,2]
[364708927,1749214246663,-440.0,0.00020273,2]
[364708928,1749214246672,-440.0,0.00020273,2]
[364708929,1749214246683,-863.5,0.00020273,2]
[364708930,1749214246692,-440.0,0.00020273,2]
[364708931,1749214246702,-440.0,0.00020273,2]
[364708932,1749214246712,-440.0,0.00020273,2]
[364708933,1749214246722,-440.0,0.00020273,2]
[364708934,1749214246732,-440.0,0.00020273,2]
[364708935,1749214246741,-911.46,0.00020273,2]
[364708936,1749214246751,-1062.11,0.00020273,2]
[364708937,1749214246761,-440.0,0.00020273,2]
[364708938,1749214246771,-966.81,0.00020273,2]
[364708939,1749214246781,-440.0,0.00020273,2]
[364708940,1749214246790,-440.0,0.00020273,2]
[364708941,1749214246800,-440.0,0.00020273,2]
[364708942,1749214246811,-440.0,0.00020273,2]
[364708943,1749214246821,-400.0,0.00020273,2]
[364708944,1749214246833,-4387.44,0.00020273,2]
[364708945,1749214246842,-440.0,0.00020273,2]
[364708946,1749214246851,-440.0,0.00020273,2]
[364708947,1749214246861,-440.0,0.00020273,2]
[364708948,1749214246871,-440.0,0.00020273,2]
[364708949,1749214246881,-440.0,0.00020273,2]
[364708950,1749214246890,-440.0,0.00020273,2]
[364708951,1749214246900,-390.0,0.00020273,2]
[364708952,1749214246909,-390.0,0.00020273,2]
[364708953,1749214246919,-1842.31,0.00020273,2]
[364708954,1749214246930,-2383.27191805,0.00020439,2]
[364708955,1749214246939,-155.56,0.00020506,2]
[364708956,1749214246948,-500.0,0.00020547,2]
[364708957,1749214246958,-440.0,0.00020547,2]
[364708958,1749214246967,-440.0,0.00020547,2]
[364708959,1749214246977,-215.96667312,0.00020547,2]
[364708960,1749214246986,-440.0,0.00020547,2]
[364708961,1749214246997,-440.0,0.00020547,2]
[364708962,1749214247007,-440.0,0.00020547,2]
[364708963,1749214247057,-440.0,0.00020547,2]
[364708964,1749214247066,-440.0,0.00020547,2]
[364708965,1749214247076,-440.0,0.00020547,2]
[364708966,1749214247086,-440.0,0.00020547,2]
[364708967,1749214247096,-443.77,0.00020547,2]
[364708968,1749214247106,-440.0,0.00020547,2]
[364708969,1749214247115,-440.0,0.00020547,2]
[364708970,1749214247125,-440.0,0.00020547,2]
[364708971,1749214247135,-440.0,0.00020547,2]
[364708972,1749214247144,-440.0,0.00020547,2]
[364708973,1749214247154,-280.5111075,0.00020547,2]
[364708974,1749214247164,-440.0,0.00020547,2]
[364708975,1749214247173,-440.0,0.00020547,2]
[364708976,1749214247183,-440.0,0.00020547,2]
[364708977,1749214247193,-440.0,0.00020547,2]
[364708978,1749214247203,-440.0,0.00020547,2]
[364708979,1749214247212,-440.0,0.00020547,2]
[364708980,1749214247222,-457.32,0.00020547,2]
[364708981,1749214247232,-440.0,0.00020547,2]
[364708982,1749214247243,-440.0,0.00020547,2]
[364708983,1749214247253,-440.0,0.00020547,2]
[364708984,1749214247262,-380.0,0.00020547,2]
[364708985,1749214247272,-440.0,0.00020547,2]
[364708986,1749214247281,-400.0,0.00020547,2]
[364708987,1749214247291,-380.0,0.00020547,2]
[364708988,1749214247301,-1619.82,0.00020547,2]
[364708989,1749214247310,-1008.18,0.00020547,2]
[364708990,1749214247320,-440.0,0.00020547,2]
[364708991,1749214247330,-2671.63,0.00020547,2]
[364708992,1749214247339,-1751.18,0.00020547,2]
[364708993,1749214247349,-380.0,0.00020547,2]
[364708994,1749214247359,-583.76,0.00020547,2]
[364708995,1749214247368,-460.0,0.00020547,2]
[364708996,1749214247378,-440.0,0.00020547,2]
[364708997,1749214247388,-440.0,0.00020547,2]
[364708998,1749214247397,-700.1,0.00020547,2]
[364708999,1749214247407,-605.44,0.00020547,2]
[364709000,1749214247417,-440.0,0.00020547,2]
[364709001,1749214247426,-2910.28,0.00020547,2]
[364709002,1749214247436,-2253.61,0.00020547,2]
[364709003,1749214247446,-440.0,0.00020547,2]
[364709004,1749214247455,-440.0,0.00020547,2]
[364709005,1749214247465,-440.0,0.00020547,2]
[364709006,1749214247474,-440.0,0.00020547,2]
[364709007,1749214247484,-440.0,0.00020547,2]
[364709008,1749214247493,-440.0,0.00020547,2]
[364709009,1749214247503,-440.0,0.00020547,2]
[364709010,1749214247512,-440.0,0.00020547,2]
[364709011,1749214247521,-561.53,0.00020547,2]
[364709012,1749214247531,-440.0,0.00020547,2]
[364709013,1749214247540,-988.31,0.00020547,2]
[364709014,1749214247550,-1039.65,0.00020547,2]
[364709015,1749214247559,-440.0,0.00020547,2]
[364709016,1749214247570,-440.0,0.00020547,2]
[364709017,1749214247579,-440.0,0.00020547,2]
[364709018,1749214247588,-440.0,0.00020547,2]
[364709019,1749214247598,-440.0,0.00020547,2]
[364709020,1749214247608,-440.0,0.00020547,2]
[364709021,1749214247617,-440.0,0.00020547,2]
[364709022,1749214247628,-5859.32,0.00020547,2]
[364709023,1749214247639,-657.96,0.00020547,2]
[364709024,1749214247648,-380.0,0.00020547,2]
[364709025,1749214247658,-440.0,0.00020547,2]
[364709026,1749214247667,-440.0,0.00020547,2]
[364709027,1749214247677,-863.5,0.00020547,2]
[364709028,1749214247686,-440.0,0.00020547,2]
[364709029,1749214247696,-460.0,0.00020547,2]
[364709030,1749214247705,-178.11879478,0.00020547,2]
[364709031,1749214247714,-440.0,0.00020547,2]
[364709032,1749214247724,-440.0,0.00020547,2]
[364709033,1749214247733,-911.46,0.00020547,2]
[364709034,1749214247743,-1062.11,0.00020547,2]
[364709035,1749214247752,-440.0,0.00020547,2]
[364709036,1749214247762,-966.81,0.00020547,2]
[364709037,1749214247771,-440.0,0.00020547,2]
[364709038,1749214247780,-440.0,0.00020547,2]
[364709039,1749214247790,-440.0,0.00020547,2]
[364709040,1749214247799,-440.0,0.00020547,2]
[364709041,1749214247808,-4387.44,0.00020547,2]
[364709042,1749214247819,-440.0,0.00020547,2]
[364709043,1749214247828,-440.0,0.00020547,2]
[364709044,1749214247838,-440.0,0.00020547,2]
[364709045,1749214247847,-440.0,0.00020547,2]
[364709046,1749214247856,-436.13,0.00020547,2]
[364709047,1749214247866,-440.0,0.00020547,2]
[364709048,1749214247875,-1842.31,0.00020547,2]
[364709049,1749214247885,-900.0,0.00020583,2]
[364709050,1749214247894,-1484.81,0.000206,2]
[364709051,1749214247904,-837.47,0.000206,2]
[364709052,1749214247913,-21231.08,0.000206,2]
[364709053,1749214247923,-160.0,0.00020626,2]
[364709054,1749214247932,-212.976918,0.00020626,2]
[364709055,1749214247942,-160.0,0.00020647,2]
[364709056,1749214247952,-834.50537533,0.00020647,2]
[364709057,1749214247962,-160.0,0.00020647,2]
[364709058,1749214247971,-423.83542519,0.00020647,2]
[364709059,1749214247981,-160.0,0.00020647,2]
[364709060,1749214247993,-842.5625,0.00020647,2]
[364709061,1749214248002,-229.52673067,0.00020647,2]
[364709062,1749214248012,-315.04936747,0.0002065,2]
[364709063,1749214248022,-11849.89752062,0.0002065,2]
[364709064,1749214248032,-160.0,0.00020654,2]
[364709065,1749214248042,-160.0,0.00020654,2]
[364709066,1749214248052,-151.0,0.000207,4]
[364709067,1749214248064,-350.0,0.0002078,2]
[364709068,1749214248075,-2000.0,0.00020816,2]
[364709069,1749214248085,-303.24,0.00020821,2]
[364709070,1749214248095,-383.0,0.00020821,2]
[364709071,1749214248105,-370.0,0.00020821,2]
[364709072,1749214248115,-440.0,0.00020821,2]
[364709073,1749214248125,-380.0,0.00020821,2]
[364709074,1749214248135,-440.0,0.00020821,2]
[364709075,1749214248145,-440.0,0.00020821,2]
[364709076,1749214248155,-370.0,0.00020821,2]
[364709077,1749214248165,-440.0,0.00020821,2]
[364709078,1749214248178,-443.77,0.00020821,2]
[364709079,1749214248188,-440.0,0.00020821,2]
[364709080,1749214248198,-423.51,0.00020821,2]
[364709081,1749214248208,-440.0,0.00020821,2]
[364709082,1749214248218,-440.0,0.00020821,2]
[364709083,1749214248227,-210.67495731,0.00020821,2]
[364709084,1749214248237,-440.0,0.00020821,2]
[364709085,1749214248247,-440.0,0.00020821,2]
[364709086,1749214248257,-440.0,0.00020821,2]
[364709087,1749214248267,-440.0,0.00020821,2]
[364709088,1749214248277,-440.0,0.00020821,2]
[364709089,1749214248287,-440.0,0.00020821,2]
[364709090,1749214248296,-457.32,0.00020821,2]
[364709091,1749214248306,-380.0,0.00020821,2]
[364709092,1749214248315,-440.0,0.00020821,2]
[364709093,1749214248325,-440.0,0.00020821,2]
[364709094,1749214248335,-440.0,0.00020821,2]
[364709095,1749214248345,-1619.82,0.00020821,2]
[364709096,1749214248355,-1008.18,0.00020821,2]
[364709097,1749214248364,-440.0,0.00020821,2]
[364709098,1749214248375,-2671.63,0.00020821,2]
[364709099,1749214248385,-1751.18,0.00020821,2]
[364709100,1749214248395,-583.76,0.00020821,2]
[364709101,1749214248406,-440.0,0.00020821,2]
[364709102,1749214248416,-440.0,0.00020821,2]
[364709103,1749214248426,-700.1,0.00020821,2]
[364709104,1749214248435,-605.44,0.00020821,2]
[364709105,1749214248445,-440.0,0.00020821,2]
[364709106,1749214248455,-2910.28,0.00020821,2]
[364709107,1749214248465,-2253.61,0.00020821,2]
[364709108,1749214248475,-440.0,0.00020821,2]
[364709109,1749214248485,-440.0,0.00020821,2]
[364709110,1749214248495,-440.0,0.00020821,2]
[364709111,1749214248504,-380.0,0.00020821,2]
[364709112,1749214248514,-440.0,0.00020821,2]
[364709113,1749214248524,-440.0,0.00020821,2]
[364709114,1749214248533,-440.0,0.00020821,2]
[364709115,1749214248544,-440.0,0.00020821,2]
[364709116,1749214248554,-561.53,0.00020821,2]
[364709117,1749214248564,-440.0,0.00020821,2]
[364709118,1749214248575,-988.31,0.00020821,2]
[364709119,1749214248585,-1039.65,0.00020821,2]
[364709120,1749214248595,-440.0,0.00020821,2]
[364709121,1749214248604,-440.0,0.00020821,2]